Workbook

Sheet cotação empresas aereas
C1: PLANILHA PARA COTAÇÃO DE PREÇOS - Item 1 - Transporte aéreo porta a porta
A2: BSB | B2: DF | C2: Tarifa mínima (R$) | D2: <= 10KG | E2: Até 25,500 Kg (R$) | F2: Até 25,5KH | G2: 25,501 Kg à 50,500 Kg (R$) | H2: 25,5 à 50,50 | I2: 50,501 Kg à 300,500 Kg (R$) | J2: 300,501 Kg à 500,500 Kg (R$) | K2: 500,501 Kg à 1000,500 Kg (R$) | L2: Acima de 1000,500 Kg (R$) | M2: Planilha de cálculo estimado para o serviço
A3: AJU | B3: SE | C3: 82.71 | D3: 1 | E3: 9.57565791 | F3: 20 | G3: 8.339240543 | I3: 6.261007095 | J3: 5.840099055 | K3: 4.985129599 | L3: 4.985129599 | M3: Valor peso | N3: =C3*D3 -> 82.71 | O3: =SUM((F3-10)*C31)+(F3*E3) -> 195.4131582
D4: 2 | M4: Coleta/entrega | N4: =D4*C30 -> 34 | O4: =SUM((F3-10)*C31)+(C30*2) -> 37.9
N5: =SUM(N3:N4) -> 116.71 | O5: =SUM(O3:O4) -> 233.3131582 | P5: =SUM(P3:P4) -> 0 | Q5: =SUM(N5:P5) -> 350.0231582
A6: CNF | B6: MG | C6: 59.7031748 | D6: 1 | E6: 5.89271256 | F6: 11 | G6: 5.129816738 | H6: 30 | I6: 3.840785865 | J6: 3.590871716 | K6: 3.077890042 | L6: 3.077890042 | M6: Valor peso | N6: =C6*D6 -> 59.7031748 | O6: =SUM((F6-10)*C31)+(F6*E6) -> 65.20983816 | P6: =SUM((H6-10)*C31)+(G6*H6) -> 161.6945021
D7: 2 | M7: Coleta/entrega | N7: =D7*C30 -> 34 | O7: =SUM((F6-10)*C31)+(C30*2) -> 34.39 | P7: =SUM((H6-10)*C31)+(C30*2) -> 41.8
N8: =SUM(N6:N7) -> 93.7031748 | O8: =SUM(O6:O7) -> 99.59983816 | P8: =SUM(P6:P7) -> 203.4945021 | Q8: =SUM(N8:P8) -> 396.7975151
A9: MCZ | B9: AL | C9: 82.70842986 | D9: 1 | E9: 10.41747399 | F9: 11 | G9: 9.04952286 | H9: 30 | I9: 6.773988769 | J9: 6.3136206 | K9: 5.419191015 | L9: 5.419191015 | M9: Valor peso | N9: =C9*D9 -> 82.70842986 | O9: =SUM((F9-10)*C31)+(F9*E9) -> 114.9822139 | P9: =SUM((H9-10)*C31)+(G9*H9) -> 279.2856858
D10: 2 | M10: Coleta/entrega | N10: =D10*C30 -> 34 | O10: =SUM((F9-10)*C31)+(C30*2) -> 34.39 | P10: =SUM((H9-10)*C31)+(C30*2) -> 41.8
N11: =SUM(N9:N10) -> 116.7084299 | O11: =SUM(O9:O10) -> 149.3722139 | P11: =SUM(P9:P10) -> 321.0856858 | Q11: =SUM(N11:P11) -> 587.1663296
A12: REC | B12: PE | C12: 82.70842986 | D12: 1 | E12: 11.21982994 | F12: 20 | G12: 9.772958554 | H12: 30 | I12: 7.339583948 | J12: 6.826602274 | K12: 5.840099055 | L12: 5.840099055 | M12: Valor peso | N12: =C12*D12 -> 82.70842986 | O12: =SUM((F12-10)*C31)+(F12*E12) -> 228.2965988 | P12: =SUM((H12-10)*C31)+(G12*H12) -> 300.9887566
D13: 2 | M13: Coleta/entrega | N13: =D13*C30 -> 34 | O13: =SUM((F12-10)*C31)+(C30*2) -> 37.9 | P13: =SUM((H12-10)*C31)+(C30*2) -> 41.8
N14: =SUM(N12:N13) -> 116.7084299 | O14: =SUM(O12:O13) -> 266.1965988 | P14: =SUM(P12:P13) -> 342.7887566 | Q14: =SUM(N14:P14) -> 725.6937853
A15: SLZ | B15: MA | C15: 82.70842986 | D15: 1 | E15: 11.43028396 | F15: 15 | G15: 9.838725435 | H15: 30 | I15: 7.523731215 | J15: 6.94498266 | K15: 5.932172689 | L15: 5.78748555 | M15: Valor peso | N15: =C15*D15 -> 82.70842986 | O15: =SUM((F15-10)*C31)+(F15*E15) -> 173.4042594 | P15: =SUM((H15-10)*C31)+(G15*H15) -> 302.9617631
D16: 2 | M16: Coleta/entrega | N16: =D16*C30 -> 34 | O16: =SUM((F15-10)*C31)+(C30*2) -> 35.95 | P16: =SUM((H15-10)*C31)+(C30*2) -> 41.8
N17: =SUM(N15:N16) -> 116.7084299 | O17: =SUM(O15:O16) -> 209.3542594 | P17: =SUM(P15:P16) -> 344.7617631 | Q17: =SUM(N17:P17) -> 670.8244523
A18: SSA | B18: BA | C18: 82.70842986 | D18: 1 | E18: 8.405007424 | F18: 15 | G18: 7.300123819 | H18: 30 | I18: 5.458651144 | J18: 5.116663361 | K18: 4.393227668 | L18: 4.393227668 | M18: Valor peso | N18: =C18*D18 -> 82.70842986 | O18: =SUM((F18-10)*C31)+(F18*E18) -> 128.0251114 | P18: =SUM((H18-10)*C31)+(G18*H18) -> 226.8037146
D19: 2 | M19: Coleta/entrega | N19: =D19*C30 -> 34 | O19: =SUM((F18-10)*C31)+(C30*2) -> 35.95 | P19: =SUM((H18-10)*C31)+(C30*2) -> 41.8
N20: =SUM(N18:N19) -> 116.7084299 | O20: =SUM(O18:O19) -> 163.9751114 | P20: =SUM(P18:P19) -> 268.6037146 | Q20: =SUM(N20:P20) -> 549.2872558
A21: THE | B21: PI | C21: 82.70842986 | D21: 1 | E21: 9.549351158 | F21: 15 | G21: 8.391854048 | H21: 30 | I21: 6.221546966 | J21: 5.932172689 | K21: 4.919362718 | L21: 4.919362718 | M21: Valor peso | N21: =C21*D21 -> 82.70842986 | O21: =SUM((F21-10)*C31)+(F21*E21) -> 145.1902674 | P21: =SUM((H21-10)*C31)+(G21*H21) -> 259.5556214
D22: 2 | M22: Coleta/entrega | N22: =D22*C30 -> 34 | O22: =SUM((F21-10)*C31)+(C30*2) -> 35.95 | P22: =SUM((H21-10)*C31)+(C30*2) -> 41.8
N23: =SUM(N21:N22) -> 116.7084299 | O23: =SUM(O21:O22) -> 181.1402674 | P23: =SUM(P21:P22) -> 301.3556214 | Q23: =SUM(N23:P23) -> 599.2043186
A24: UDI | B24: MG | C24: 59.7031748 | D24: 1 | E24: 3.761865608 | G24: 3.327804191 | I24: 2.604368497 | J24: 2.31499422 | K24: 2.025619943 | L24: 1.880932804 | M24: Valor peso | N24: =C24*D24 -> 59.7031748
D25: 2 | M25: Coleta/entrega | N25: =D25*C30 -> 34
N26: =SUM(N24:N25) -> 93.7031748 | O26: =SUM(O24:O25) -> 0 | P26: =SUM(P24:P25) -> 0 | Q26: =SUM(N26:P26) -> 93.7031748
D27: =SUM(D3+D6+D9+D12+D15+D18+D21+D24)*10 -> 80 | F27: =SUM(F3:F26) -> 107 | H27: =SUM(H3:H26) -> 180 | I27: Total de Quilogramas anual | L27: =D27+F27+H27 -> 367
L28: Valor deste item/serviço mês | P28: =SUM(Q3:Q26) -> 3972.69999
A29: Peso | C29: Coleta | D29: Entrega | L29: Valor deste item/serviço anual | P29: =P28*12 -> 47672.39988
A30: até 10 KG | C30: 17 | D30: 17 | L30: Desconto a ser aplicado pela empresa | Q30: 0
A31: Exedente | C31: 0.39 | D31: 0.39 | Q31: =P29*Q30 -> 0
L32: Valor final deste item/serviço anual | P32: =P29-Q31 -> 47672.39988
Q33: 14545.92
Q34: =P32+Q33 -> 62218.31988

Sheet cotação empresas rod - enviado
A1: PLANILHA PARA COTAÇÃO DE PREÇOS - Item 2 - Transporte rodoviário porta a porta
A2: Brasília | B2: DF | C2: Distância (KM) | D2: Taxa despacho | F2: Redespacho | H2: Taxa Emergência | I2: Taxa Seguro (%)
D3: Valor (R$) da coleta/entrega até 10Kg | E3: Valor (R$/KG) para excedente de 10Kg | F3: Valor (R$) da coleta/entrega até 10Kg | G3: Valor (R$/KG) para excedente de 10Kg | K3: até 10KG (R$) | L3: Até 20 Kg (R$) | M3: Até 30Kg (R$) | N3: até 50 Kg (R$) | O3: até 70 Kg (R$) | P3: até 100 Kg (R$) | Q3: Acima de 100 Kg (R$) | R3: Ad valorem (%) | S3: Planilha de cálculo estimado para o serviço
A4: Aracaju | B4: SE | C4: 1640 | D4: 28.33 | E4: 1 | F4: 105 | G4: 1.57 | H4: 204 | J4: Peso | K4: 8 | L4: 20 | S4: Valor peso | T4: =K5 -> 66.19 | U4: =SUM((L4-10)*L5)+(L5*L4) -> 113.4
J5: Taxa | K5: 66.19 | L5: 3.78 | M5: 3.5 | N5: 3.26 | O5: 3.03 | P5: 2.81 | Q5: 2.63 | R5: 0.59 | S5: Coleta/entrega | T5: =D4*2 -> 56.66 | U5: =SUM((L4-10)*E4)+(D4*2) -> 66.66
T6: =SUM(T4:T5) -> 122.85 | U6: =SUM(U4:U5) -> 180.06 | V6: =SUM(V4:V5) -> 0 | W6: =SUM(T6:V6) -> 302.91
A7: Belo Horizonte | B7: MG | C7: 735 | D7: 28.33 | E7: 1 | F7: 105 | G7: 1.57 | H7: 204 | J7: Peso | K7: 8.5 | L7: 15 | S7: Valor peso | T7: =K8 -> 45.27 | U7: =SUM((L7-10)*L8)+(L8*L7) -> 41
J8: Taxa | K8: 45.27 | L8: 2.05 | M8: 1.92 | N8: 1.78 | O8: 1.66 | P8: 1.56 | Q8: 1.45 | R8: 0.59 | S8: Coleta/entrega | T8: =D7*2 -> 56.66 | U8: =SUM((L7-10)*E7)+(D7*2) -> 61.66
T9: =SUM(T7:T8) -> 101.93 | U9: =SUM(U7:U8) -> 102.66 | V9: =SUM(V7:V8) -> 0 | W9: =SUM(T9:V9) -> 204.59
A10: Maceio | B10: AL | C10: 1897 | D10: 28.33 | E10: 1 | F10: 105 | G10: 1.57 | H10: 204 | J10: Peso | L10: 20 | S10: Valor peso | U10: =SUM((L10-10)*L11)+(L11*L10) -> 114.9
J11: Taxa | K11: 67.73 | L11: 3.83 | M11: 3.55 | N11: 3.31 | O11: 3.08 | P11: 2.86 | Q11: 2.68 | R11: 0.59 | S11: Coleta/entrega | U11: =SUM((L10-10)*E10)+(D10*2) -> 66.66
T12: =SUM(T10:T11) -> 0 | U12: =SUM(U10:U11) -> 181.56 | V12: =SUM(V10:V11) -> 0 | W12: =SUM(T12:V12) -> 181.56
A13: Recife | B13: PE | C13: 2099 | D13: 28.33 | E13: 1 | F13: 105 | G13: 1.57 | H13: 204 | J13: Peso | K13: 10 | L13: 11 | S13: Valor peso | T13: =K14 -> 92.1 | U13: =SUM((L13-10)*L14)+(L14*L13) -> 95.4
J14: Taxa | K14: 92.1 | L14: 7.95 | M14: 7.3 | N14: 6.71 | O14: 6.17 | P14: 5.69 | Q14: 5.25 | R14: 0.59 | S14: Coleta/entrega | T14: =D13*2 -> 56.66 | U14: =SUM((L13-10)*E13)+(D13*2) -> 57.66
T15: =SUM(T13:T14) -> 148.76 | U15: =SUM(U13:U14) -> 153.06 | V15: =SUM(V13:V14) -> 0 | W15: =SUM(T15:V15) -> 301.82
A16: Salvador | B16: BA | C16: 1465 | D16: 28.33 | E16: 1 | F16: 105 | G16: 1.57 | H16: 204 | J16: Peso | K16: 9 | L16: 11 | S16: Valor peso | T16: =K17 -> 62.44 | U16: =SUM((L16-10)*L17)+(L17*L16) -> 44.52
J17: Taxa | K17: 62.44 | L17: 3.71 | M17: 3.43 | N17: 3.19 | O17: 2.96 | P17: 2.74 | Q17: 2.56 | R17: 0.59 | S17: Coleta/entrega | T17: =D16*2 -> 56.66 | U17: =SUM((L16-10)*E16)+(D16*2) -> 57.66
T18: =SUM(T16:T17) -> 119.1 | U18: =SUM(U16:U17) -> 102.18 | V18: =SUM(V16:V17) -> 0 | W18: =SUM(T18:V18) -> 221.28
J19: Peso | K19: =SUM(K4+K7+K10+K13+K16) -> 35.5 | L19: =SUM(L4+L7+L10+L13+L16) -> 77 | M19: =SUM(M4+M7+M10+M13+M16) -> 0
K20: Peso Total (quilogramas) | N20: =M19+L19+K19 -> 112.5 | Q20: Valor deste item/serviço mês | V20: =SUM(W4:W18) -> 1212.16
Q21: Valor deste item/serviço anual | V21: =V20*12 -> 14545.92
D22: A empresa deverá anexar a sua tabela de tarifas completa, apresentando todas as capitais do país, tendo como origem BRASÍLIA/DF. | Q22: Desconto a ser aplicado pela empresa | W22: 0
W23: =V21*W22 -> 0
Q24: Valor final deste item/serviço anual | V24: =V21-W23 -> 14545.92

Sheet rodoviário
A1: Tarifário de transporte rodoviário - CODEVASF
A2: Brasília | B2: DF | C2: Distância (KM) | D2: Taxa despacho | L2: Redespacho | T2: Taxa Emergência | Y2: até 10KG (R$) | AC2: Até 20 Kg (R$) | AG2: Até 30 Kg (R$) | AK2: até 50 Kg (R$) | AO2: até 70 Kg (R$) | AS2: até 100 Kg (R$) | AW2: Acima de 100 Kg (R$) | BA2: Taxa de seguro (%)
D3: Valor (R$) da coleta/entrega até 10Kg | H3: Valor (R$/KG) para excedente de 10Kg | L3: Valor (R$) da coleta/entrega até 10Kg | P3: Valor (R$/KG) para excedente de 10Kg | T3: AVG | U3: Aerocargas | V3: Voetur | W3: Média | Y3: AVG | Z3: AEROCARGAS | AA3: Voetur | AB3: Média | AC3: AVG | AD3: AEROCARGAS | AE3: Voetur | AF3: Média | AG3: AVG | AH3: AEROCARGAS | AI3: Voetru | AJ3: Média | AK3: AVG | AL3: AEROCARGAS | AM3: Voetru | AN3: Média | AO3: AVG | AP3: AEROCARGAS | AQ3: Voetur | AR3: Média | AS3: AVG | AT3: AEROCARGAS | AU3: Voetur | AV3: Média | AW3: AVG | AX3: AEROCARGAS | AY3: Voetur | AZ3: Média | BA3: AVG | BB3: AEROCARGAS | BC3: Voetur | BD3: Média
D4: AVG | E4: AEROCARGAS | F4: Voetur | G4: Média | H4: AVG | I4: AEROCARGAS | J4: Voetur | K4: Média | L4: AVG | M4: AEROCARGAS | N4: Voetur | O4: Média | P4: AVG | Q4: AEROCARGAS | R4: Voetur | S4: Média
A5: Aracaju | B5: SE | C5: 1640 | D5: 30 | E5: 35 | F5: 20 | G5: =(D5+E5+F5)/3 -> 28.33333333 | H5: 0.35 | I5: 1.15 | J5: 1.5 | K5: =(H5+I5+J5)/3 -> 1 | L5: 30 | M5: 145 | N5: 140 | O5: =(L5+M5+N5)/3 -> 105 | P5: 0.35 | Q5: 1.65 | R5: 2.72 | S5: =(P5+Q5+R5)/3 -> 1.573333333 | T5: 179.35 | U5: 350 | V5: 84.2 | W5: =(T5+U5+V5)/3 -> 204.5166667 | X5: Peso
G6: =(D6+E6+F6)/3 -> 0 | K6: =(H6+I6+J6)/3 -> 0 | O6: =(L6+M6+N6)/3 -> 0 | S6: =(P6+Q6+R6)/3 -> 0 | W6: =(T6+U6+V6)/3 -> 0 | X6: Taxa | Y6: 56.46 | Z6: 31.09 | AA6: 111.01 | AB6: =(AA6+Z6+Y6)/3 -> 66.18666667 | AC6: 4.85 | AD6: 4.27 | AE6: 2.22 | AF6: =(AE6+AD6+AC6)/3 -> 3.78 | AG6: 4.4 | AH6: 3.88 | AI6: 2.22 | AJ6: =(AG6+AH6+AI6)/3 -> 3.5 | AK6: 4.02 | AL6: 3.54 | AM6: 2.22 | AN6: =(AM6+AL6+AK6)/3 -> 3.26 | AO6: 3.65 | AP6: 3.22 | AQ6: 2.22 | AR6: =(AQ6+AP6+AO6)/3 -> 3.03 | AS6: 3.3 | AT6: 2.91 | AU6: 2.22 | AV6: =(AS6+AT6+AU6)/3 -> 2.81 | AW6: 3.02 | AX6: 2.66 | AY6: 2.22 | AZ6: =(AY6+AX6+AW6)/3 -> 2.633333333 | BA6: 0.45 | BB6: 0.33 | BC6: 1 | BD6: =(BA6+BB6+BC6)/3 -> 0.5933333333
G7: 0 | K7: 0 | O7: 0 | S7: 0 | W7: 0 | AB7: =(AA7+Z7+Y7)/3 -> 0 | AF7: =(AE7+AD7+AC7)/3 -> 0 | AN7: =(AM7+AL7+AK7)/3 -> 0 | AR7: =(AQ7+AP7+AO7)/3 -> 0 | AV7: =(AS7+AT7+AU7)/3 -> 0 | AZ7: =(AY7+AX7+AW7)/3 -> 0 | BD7: =(BA7+BB7+BC7)/3 -> 0
A8: Belo Horizonte | B8: MG | C8: 735 | D8: 30 | E8: 35 | F8: 20 | G8: 28.33333333 | H8: 0.35 | I8: 1.15 | J8: 1.5 | K8: 1 | L8: 30 | M8: 145 | N8: 140 | O8: 105 | P8: 0.35 | Q8: 1.65 | R8: 2.72 | S8: 1.573333333 | T8: 179.35 | U8: 350 | V8: 84.2 | W8: 204.5166667 | X8: Peso | AB8: 0 | AF8: 0 | AN8: 0 | AR8: 0 | AV8: 0 | AZ8: 0 | BD8: 0
G9: 0 | K9: 0 | O9: 0 | S9: 0 | W9: 0 | X9: Taxa | Y9: 35.57 | Z9: 19.59 | AA9: 80.66 | AB9: 45.27333333 | AC9: 2.54 | AD9: 2.24 | AE9: 1.37 | AF9: 2.05 | AG9: 2.33 | AH9: 2.05 | AI9: 1.37 | AJ9: =(AG9+AH9+AI9)/3 -> 1.916666667 | AK9: 2.11 | AL9: 1.86 | AM9: 1.37 | AN9: 1.78 | AO9: 1.92 | AP9: 1.69 | AQ9: 1.37 | AR9: 1.66 | AS9: 1.76 | AT9: 1.55 | AU9: 1.37 | AV9: 1.56 | AW9: 1.59 | AX9: 1.4 | AY9: 1.37 | AZ9: 1.453333333 | BA9: 0.45 | BB9: 0.33 | BC9: 1 | BD9: 0.5933333333
G10: 0 | K10: 0 | O10: 0 | S10: 0 | W10: 0 | AB10: 0 | AF10: 0 | AN10: 0 | AR10: 0 | AV10: 0 | AZ10: 0 | BD10: 0
A11: Campo Grande | B11: MS | C11: 1061 | D11: 30 | E11: 35 | F11: 20 | G11: 28.33333333 | H11: 0.35 | I11: 1.15 | J11: 1.5 | K11: 1 | L11: 30 | M11: 145 | N11: 140 | O11: 105 | P11: 0.35 | Q11: 1.65 | R11: 2.72 | S11: 1.573333333 | T11: 179.35 | U11: 350 | V11: 84.2 | W11: 204.5166667 | X11: Peso | AB11: 0 | AF11: 0 | AN11: 0 | AR11: 0 | AV11: 0 | AZ11: 0 | BD11: 0
G12: 0 | K12: 0 | O12: 0 | S12: 0 | W12: 0 | X12: Taxa | Y12: 41.7 | Z12: 28.38 | AA12: 90.27 | AB12: 53.45 | AC12: 3.22 | AE12: 1.7 | AF12: 1.64 | AG12: 2.94 | AI12: 1.7 | AJ12: 1.546666667 | AK12: 2.67 | AM12: 1.7 | AN12: 1.456666667 | AO12: 2.42 | AQ12: 1.7 | AR12: 1.373333333 | AS12: 2.22 | AU12: 1.7 | AV12: 1.306666667 | AW12: 2 | AY12: 1.7 | AZ12: 1.233333333 | BA12: 0.45 | BB12: 0.33 | BC12: 1 | BD12: 0.5933333333
G13: 0 | K13: 0 | O13: 0 | S13: 0 | W13: 0 | AB13: 0 | AF13: 0 | AN13: 0 | AR13: 0 | AV13: 0 | AZ13: 0 | BD13: 0
A14: Curitiba | B14: PR | C14: 1081 | D14: 30 | E14: 35 | F14: 20 | G14: 28.33333333 | H14: 0.35 | I14: 1.15 | J14: 1.5 | K14: 1 | L14: 30 | M14: 145 | N14: 140 | O14: 105 | P14: 0.35 | Q14: 1.65 | R14: 2.72 | S14: 1.573333333 | T14: 179.35 | U14: 350 | V14: 84.2 | W14: 204.5166667 | X14: Peso | AB14: 0 | AF14: 0 | AN14: 0 | AR14: 0 | AV14: 0 | AZ14: 0 | BD14: 0
G15: 0 | K15: 0 | O15: 0 | S15: 0 | W15: 0 | X15: Taxa | Y15: 51.54 | Z15: 28.38 | AA15: 90.27 | AB15: 56.73 | AC15: 4.3 | AD15: 3.79 | AE15: 1.7 | AF15: 3.263333333 | AG15: 3.92 | AH15: 3.45 | AI15: 1.7 | AJ15: 3.023333333 | AK15: 3.55 | AL15: 3.13 | AM15: 1.7 | AN15: 2.793333333 | AO15: 3.23 | AP15: 2.85 | AQ15: 1.7 | AR15: 2.593333333 | AS15: 2.94 | AT15: 2.59 | AU15: 1.7 | AV15: 2.41 | AW15: 2.42 | AX15: 2.35 | AY15: 1.7 | AZ15: 2.156666667 | BA15: 0.45 | BB15: 0.33 | BC15: 1 | BD15: 0.5933333333
G16: 0 | K16: 0 | O16: 0 | S16: 0 | W16: 0 | AB16: 0 | AF16: 0 | AN16: 0 | AR16: 0 | AV16: 0 | AZ16: 0 | BD16: 0
A17: Florinópolis | B17: SC | C17: 1678 | D17: 30 | E17: 35 | F17: 20 | G17: 28.33333333 | H17: 0.35 | I17: 1.15 | J17: 1.5 | K17: 1 | L17: 30 | M17: 145 | N17: 140 | O17: 105 | P17: 0.35 | Q17: 1.65 | R17: 2.72 | S17: 1.573333333 | T17: 179.35 | U17: 350 | V17: 84.2 | W17: 204.5166667 | X17: Peso | AB17: 0 | AF17: 0 | AN17: 0 | AR17: 0 | AV17: 0 | AZ17: 0 | BD17: 0
G18: 0 | K18: 0 | O18: 0 | S18: 0 | W18: 0 | X18: Taxa | Y18: 58.93 | Z18: 32.45 | AA18: 111.01 | AB18: 67.46333333 | AC18: 5.12 | AD18: 4.51 | AE18: 2.22 | AF18: 3.95 | AG18: 4.65 | AH18: 4.1 | AI18: 2.22 | AJ18: 3.656666667 | AK18: 4.23 | AL18: 3.73 | AM18: 2.22 | AN18: 3.393333333 | AO18: 3.84 | AP18: 3.38 | AQ18: 2.22 | AR18: 3.146666667 | AS18: 3.5 | AT18: 3.08 | AU18: 2.22 | AV18: 2.933333333 | AW18: 3.17 | AX18: 2.79 | AY18: 2.22 | AZ18: 2.726666667 | BA18: 0.45 | BB18: 0.33 | BC18: 1 | BD18: 0.5933333333
G19: 0 | K19: 0 | O19: 0 | S19: 0 | W19: 0 | AB19: 0 | AF19: 0 | AN19: 0 | AR19: 0 | AV19: 0 | AZ19: 0 | BD19: 0
A20: Fortaleza | B20: CE | C20: 1981 | D20: 30 | E20: 35 | F20: 20 | G20: 28.33333333 | H20: 0.35 | I20: 1.15 | J20: 1.5 | K20: 1 | L20: 30 | M20: 145 | N20: 140 | O20: 105 | P20: 0.35 | Q20: 1.65 | R20: 2.72 | S20: 1.573333333 | T20: 179.35 | U20: 350 | V20: 84.2 | W20: 204.5166667 | X20: Peso | AB20: 0 | AF20: 0 | AN20: 0 | AR20: 0 | AV20: 0 | AZ20: 0 | BD20: 0
G21: 0 | K21: 0 | O21: 0 | S21: 0 | W21: 0 | X21: Taxa | Y21: 130.37 | Z21: 71.79 | AA21: 119.12 | AB21: 107.0933333 | AC21: 14.83 | AD21: 13.07 | AE21: 2.44 | AF21: 10.11333333 | AG21: 13.48 | AH21: 11.88 | AI21: 2.44 | AJ21: 9.266666667 | AK21: 12.26 | AL21: 10.8 | AM21: 2.44 | AN21: 8.5 | AO21: 11.13 | AP21: 9.81 | AQ21: 2.44 | AR21: 7.793333333 | AS21: 10.12 | AT21: 8.92 | AU21: 2.44 | AV21: 7.16 | AW21: 9.2 | AX21: 8.11 | AY21: 2.44 | AZ21: 6.583333333 | BA21: 0.45 | BB21: 0.33 | BC21: 1 | BD21: 0.5933333333
G22: 0 | K22: 0 | O22: 0 | S22: 0 | W22: 0 | AB22: 0 | AF22: 0 | AN22: 0 | AR22: 0 | AV22: 0 | AZ22: 0 | BD22: 0
A23: Goiania | B23: GO | C23: 209 | D23: 30 | E23: 35 | F23: 20 | G23: 28.33333333 | H23: 0.35 | I23: 1.15 | J23: 1.5 | K23: 1 | L23: 30 | M23: 145 | N23: 140 | O23: 105 | P23: 0.35 | Q23: 1.65 | R23: 2.72 | S23: 1.573333333 | T23: 179.35 | U23: 350 | V23: 84.2 | W23: 204.5166667 | X23: Peso | AB23: 0 | AF23: 0 | AN23: 0 | AR23: 0 | AV23: 0 | AZ23: 0 | BD23: 0
G24: 0 | K24: 490 | O24: 0 | W24: 0 | X24: Taxa | Y24: 23.31 | Z24: 12.84 | AA24: 68.97 | AB24: 35.04 | AC24: 1.23 | AD24: 1.08 | AE24: 0.98 | AF24: 1.096666667 | AG24: 1.11 | AH24: 0.98 | AI24: 0.98 | AJ24: 1.023333333 | AK24: 1.01 | AL24: 0.89 | AM24: 0.98 | AN24: 0.96 | AO24: 0.9 | AP24: 0.79 | AQ24: 0.98 | AR24: 0.89 | AS24: 0.83 | AT24: 0.73 | AU24: 0.98 | AV24: 0.8466666667 | AW24: 0.75 | AX24: 0.66 | AY24: 0.98 | AZ24: 0.7966666667 | BA24: 0.45 | BB24: 0.33 | BC24: 1 | BD24: 0.5933333333
G25: =G23 -> 28.33333333 | K25: =K24*K23 -> 490 | W25: 0 | AB25: 0 | AF25: 0 | AN25: 0 | AR25: 0 | AV25: 0 | AZ25: 490 | BD25: 0
A26: Joao Pessoa | B26: PB | C26: 2192 | D26: 30 | E26: 35 | F26: 20 | G26: 28.33333333 | H26: 0.35 | I26: 1.15 | J26: 1.5 | K26: 1 | L26: 30 | M26: 145 | N26: 140 | O26: 105 | P26: 0.35 | Q26: 1.65 | R26: 2.72 | S26: 1.573333333 | T26: 179.35 | U26: 350 | V26: 84.2 | W26: 204.5166667 | X26: Peso | AB26: 0 | AF26: 0 | AN26: 0 | AR26: 0 | AV26: 0 | AZ26: =AZ25*AZ24 -> 390.3666667 | BD26: 0 | BE26: =G25+K25+AZ26 -> 908.7
G27: 0 | K27: 0 | O27: 0 | S27: 0 | W27: 0 | X27: Taxa | Y27: 104.5 | Z27: 57.54 | AA27: 121.98 | AB27: 94.67333333 | AC27: 11.8 | AD27: 10.47 | AE27: 2.53 | AF27: 8.266666667 | AG27: 10.81 | AH27: 9.52 | AI27: 2.53 | AJ27: 7.62 | AK27: 9.83 | AL27: 8.66 | AM27: 2.53 | AN27: 7.006666667 | AO27: 8.93 | AP27: 7.87 | AQ27: 2.53 | AR27: 6.443333333 | AS27: 8.12 | AT27: 7.15 | AU27: 2.53 | AV27: 5.933333333 | AW27: 7.37 | AX27: 6.49 | AY27: 2.53 | AZ27: 5.463333333 | BA27: 0.45 | BB27: 0.33 | BC27: 1 | BD27: 0.5933333333
G28: 0 | K28: 0 | O28: 0 | S28: 0 | W28: 0 | AB28: 0 | AF28: 0 | AN28: 0 | AR28: 0 | AV28: 0 | AZ28: 0 | BD28: 0
A29: Maceio | B29: AL | C29: 1897 | D29: 30 | E29: 35 | F29: 20 | G29: 28.33333333 | H29: 0.35 | I29: 1.15 | J29: 1.5 | K29: 1 | L29: 30 | M29: 145 | N29: 140 | O29: 105 | P29: 0.35 | Q29: 1.65 | R29: 2.72 | S29: 1.573333333 | T29: 179.35 | U29: 350 | V29: 84.2 | W29: 204.5166667 | X29: Peso | AB29: 0 | AF29: 0 | AN29: 0 | AR29: 0 | AV29: 0 | AZ29: 0 | BD29: 0
G30: 0 | K30: 0 | O30: 0 | S30: 0 | W30: 0 | X30: Taxa | Y30: 56.46 | Z30: 31.09 | AA30: 115.65 | AB30: 67.73333333 | AC30: 4.85 | AD30: 4.27 | AE30: 2.37 | AF30: 3.83 | AG30: 4.4 | AH30: 3.88 | AI30: 2.37 | AJ30: 3.55 | AK30: 4.02 | AL30: 3.54 | AM30: 2.37 | AN30: 3.31 | AO30: 3.65 | AP30: 3.22 | AQ30: 2.37 | AR30: 3.08 | AS30: 3.3 | AT30: 2.91 | AU30: 2.37 | AV30: 2.86 | AW30: 3.02 | AX30: 2.66 | AY30: 2.37 | AZ30: 2.683333333 | BA30: 0.45 | BB30: 0.33 | BC30: 1 | BD30: 0.5933333333
G31: 0 | K31: 0 | O31: 0 | S31: 0 | W31: 0 | AB31: 0 | AF31: 0 | AN31: 0 | AR31: 0 | AV31: 0 | AZ31: 0 | BD31: 0
A32: Natal | B32: RN | C32: 2360 | D32: 30 | E32: 35 | F32: 20 | G32: 28.33333333 | H32: 0.35 | I32: 1.15 | J32: 1.5 | K32: 1 | L32: 30 | M32: 145 | N32: 140 | O32: 105 | P32: 0.35 | Q32: 1.65 | R32: 2.72 | S32: 1.573333333 | T32: 179.35 | U32: 350 | V32: 84.2 | W32: 204.5166667 | X32: Peso | AB32: 0 | AF32: 0 | AN32: 0 | AR32: 0 | AV32: 0 | AZ32: 0 | BD32: 0
G33: 0 | K33: 0 | O33: 0 | S33: 0 | W33: 0 | X33: Taxa | Y33: 110.48 | Z33: 60.84 | AA33: 123.35 | AB33: 98.22333333 | AC33: 12.58 | AD33: 11.08 | AE33: 2.61 | AF33: 8.756666667 | AG33: 11.43 | AH33: 10.07 | AI33: 2.61 | AJ33: 8.036666667 | AK33: 10.39 | AL33: 9.15 | AM33: 2.61 | AN33: 7.383333333 | AO33: 9.44 | AP33: 8.32 | AQ33: 2.61 | AR33: 6.79 | AS33: 8.58 | AT33: 7.56 | AU33: 2.61 | AV33: 6.25 | AW33: 7.8 | AX33: 6.87 | AY33: 2.61 | AZ33: 5.76 | BA33: 0.45 | BB33: 0.33 | BC33: 1 | BD33: 0.5933333333
G34: 0 | K34: 0 | O34: 0 | S34: 0 | W34: 0 | AB34: 0 | AF34: 0 | AN34: 0 | AR34: 0 | AV34: 0 | AZ34: 0 | BD34: 0
A35: Porto Alegre | B35: RS | C35: 2117 | D35: 30 | E35: 35 | F35: 20 | G35: 28.33333333 | H35: 0.35 | I35: 1.15 | J35: 1.5 | K35: 1 | L35: 30 | M35: 145 | N35: 140 | O35: 105 | P35: 0.35 | Q35: 1.65 | R35: 2.72 | S35: 1.573333333 | T35: 179.35 | U35: 350 | V35: 84.2 | W35: 204.5166667 | X35: Peso | AB35: 0 | AF35: 0 | AN35: 0 | AR35: 0 | AV35: 0 | AZ35: 0 | BD35: 0
G36: 0 | K36: 0 | O36: 0 | S36: 0 | W36: 0 | X36: Taxa | Y36: 71.2 | Z36: 39.21 | AA36: 121.98 | AB36: 77.46333333 | AC36: 7.18 | AD36: 6.33 | AE36: 2.53 | AF36: 5.346666667 | AG36: 6.53 | AH36: 5.75 | AI36: 2.53 | AJ36: 4.936666667 | AK36: 5.92 | AL36: 5.22 | AM36: 2.53 | AN36: 4.556666667 | AO36: 5.4 | AP36: 4.76 | AQ36: 2.53 | AR36: 4.23 | AS36: 4.89 | AT36: 4.31 | AU36: 2.53 | AV36: 3.91 | AW36: 4.46 | AX36: 3.93 | AY36: 2.53 | AZ36: 3.64 | BA36: 0.45 | BB36: 0.33 | BC36: 1 | BD36: 0.5933333333
G37: 0 | K37: 0 | O37: 0 | S37: 0 | W37: 0 | AB37: 0 | AF37: 0 | AN37: 0 | AR37: 0 | AV37: 0 | AZ37: 0 | BD37: 0
A38: Recife | B38: PE | C38: 2099 | D38: 30 | E38: 35 | F38: 20 | G38: 28.33333333 | H38: 0.35 | I38: 1.15 | J38: 1.5 | K38: 1 | L38: 30 | M38: 145 | N38: 140 | O38: 105 | P38: 0.35 | Q38: 1.65 | R38: 2.72 | S38: 1.573333333 | T38: 179.35 | U38: 350 | V38: 84.2 | W38: 204.5166667 | X38: Peso | AB38: 0 | AF38: 0 | AN38: 0 | AR38: 0 | AV38: 0 | AZ38: 0 | BD38: 0
G39: 0 | K39: 0 | O39: 0 | S39: 0 | W39: 0 | X39: Taxa | Y39: 99.52 | Z39: 54.8 | AA39: 121.98 | AB39: 92.1 | AC39: 11.33 | AD39: 9.98 | AE39: 2.53 | AF39: 7.946666667 | AG39: 10.29 | AH39: 9.07 | AI39: 2.53 | AJ39: 7.296666667 | AK39: 9.35 | AL39: 8.24 | AM39: 2.53 | AN39: 6.706666667 | AO39: 8.5 | AP39: 7.49 | AQ39: 2.53 | AR39: 6.173333333 | AS39: 7.73 | AT39: 6.81 | AU39: 2.53 | AV39: 5.69 | AW39: 7.03 | AX39: 6.19 | AY39: 2.53 | AZ39: 5.25 | BA39: 0.45 | BB39: 0.33 | BC39: 1 | BD39: 0.5933333333
G40: 0 | K40: 0 | O40: 0 | S40: 0 | W40: 0 | AB40: 0 | AF40: 0 | AN40: 0 | AR40: 0 | AV40: 0 | AZ40: 0 | BD40: 0
A41: Rio de Janeiro | B41: RJ | C41: 1162 | D41: 30 | E41: 35 | F41: 20 | G41: 28.33333333 | H41: 0.35 | I41: 1.15 | J41: 1.5 | K41: 1 | L41: 30 | M41: 145 | N41: 140 | O41: 105 | P41: 0.35 | Q41: 1.65 | R41: 2.72 | S41: 1.573333333 | T41: 179.35 | U41: 350 | V41: 84.2 | W41: 204.5166667 | X41: Peso | AB41: 0 | AF41: 0 | AN41: 0 | AR41: 0 | AV41: 0 | AZ41: 0 | BD41: 0
G42: 0 | K42: 0 | O42: 0 | S42: 0 | W42: 0 | X42: Taxa | Y42: 46.62 | Z42: 25.67 | AA42: 91.74 | AB42: 54.67666667 | AC42: 3.77 | AD42: 3.32 | AE42: 1.75 | AF42: 2.946666667 | AG42: 3.42 | AH42: 3.01 | AI42: 1.75 | AJ42: 2.726666667 | AK42: 3.12 | AL42: 2.75 | AM42: 1.75 | AN42: 2.54 | AO42: 2.83 | AP42: 2.49 | AQ42: 1.75 | AR42: 2.356666667 | AS42: 2.57 | AT42: 2.26 | AU42: 1.75 | AV42: 2.193333333 | AW42: 2.35 | AX42: 2.07 | AY42: 1.75 | AZ42: 2.056666667 | BA42: 0.45 | BB42: 0.33 | BC42: 1 | BD42: 0.5933333333
G43: 0 | K43: 0 | O43: 0 | S43: 0 | W43: 0 | AB43: 0 | AF43: 0 | AN43: 0 | AR43: 0 | AV43: 0 | AZ43: 0 | BD43: 0
A44: Salvador | B44: BA | C44: 1465 | D44: 30 | E44: 35 | F44: 20 | G44: 28.33333333 | H44: 0.35 | I44: 1.15 | J44: 1.5 | K44: 1 | L44: 30 | M44: 145 | N44: 140 | O44: 105 | P44: 0.35 | Q44: 1.65 | R44: 2.72 | S44: 1.573333333 | T44: 179.35 | U44: 350 | V44: 84.2 | W44: 204.5166667 | X44: Peso | AB44: 0 | AF44: 0 | AN44: 0 | AR44: 0 | AV44: 0 | AZ44: 0 | BD44: 0
G45: 0 | K45: 0 | O45: 0 | S45: 0 | W45: 0 | X45: Taxa | Y45: 56.46 | Z45: 31.09 | AA45: 99.78 | AB45: 62.44333333 | AC45: 4.85 | AD45: 4.27 | AE45: 2.02 | AF45: 3.713333333 | AG45: 4.39 | AH45: 3.88 | AI45: 2.02 | AJ45: 3.43 | AK45: 4.02 | AL45: 3.54 | AM45: 2.02 | AN45: 3.193333333 | AO45: 3.64 | AP45: 3.22 | AQ45: 2.02 | AR45: 2.96 | AS45: 3.3 | AT45: 2.91 | AU45: 2.02 | AV45: 2.743333333 | AW45: 3.01 | AX45: 2.66 | AY45: 2.02 | AZ45: 2.563333333 | BA45: 0.45 | BB45: 0.33 | BC45: 1 | BD45: 0.5933333333
G46: 0 | K46: 0 | O46: 0 | S46: 0 | W46: 0 | AB46: 0 | AF46: 0 | AN46: 0 | AR46: 0 | AV46: 0 | AZ46: 0 | BD46: 0
A47: São Paulo | B47: SP | C47: 1008 | D47: 30 | E47: 35 | F47: 20 | G47: 28.33333333 | H47: 0.35 | I47: 1.15 | J47: 1.5 | K47: 1 | L47: 30 | M47: 145 | N47: 140 | O47: 105 | P47: 0.35 | Q47: 1.65 | R47: 2.72 | S47: 1.573333333 | T47: 179.35 | U47: 350 | V47: 84.2 | W47: 204.5166667 | X47: Peso | AB47: 0 | AF47: 0 | AN47: 0 | AR47: 0 | AV47: 0 | AZ47: 0 | BD47: 0
G48: 0 | K48: 0 | O48: 0 | S48: 0 | W48: 0 | X48: Taxa | Y48: 41.7 | Z48: 22.96 | AA48: 90.27 | AB48: 51.64333333 | AC48: 3.22 | AD48: 2.84 | AE48: 1.7 | AF48: 2.586666667 | AG48: 2.94 | AH48: 2.59 | AI48: 1.7 | AJ48: 2.41 | AK48: 2.67 | AL48: 2.35 | AM48: 1.7 | AN48: 2.24 | AO48: 2.42 | AP48: 2.13 | AQ48: 1.7 | AR48: 2.083333333 | AS48: 2.22 | AT48: 1.96 | AU48: 1.7 | AV48: 1.96 | AW48: 2 | AX48: 1.76 | AY48: 1.7 | AZ48: 1.82 | BA48: 0.45 | BB48: 0.33 | BC48: 1 | BD48: 0.5933333333
G49: 0 | K49: 0 | O49: 0 | S49: 0 | W49: 0 | AB49: 0 | AF49: 0 | AN49: 0 | AR49: 0 | AV49: 0 | AZ49: 0 | BD49: 0
A50: Vitória | B50: ES | C50: 1251 | D50: 30 | E50: 35 | F50: 20 | G50: 28.33333333 | H50: 0.35 | I50: 1.15 | J50: 1.5 | K50: 1 | L50: 30 | M50: 145 | N50: 140 | O50: 105 | P50: 0.35 | Q50: 1.65 | R50: 2.72 | S50: 1.573333333 | T50: 179.35 | U50: 350 | V50: 84.2 | W50: 204.5166667 | X50: Peso | AB50: 0 | AF50: 0 | AN50: 0 | AR50: 0 | AV50: 0 | AZ50: 0 | BD50: 0
X51: Taxa | Y51: 47.87 | Z51: 26.36 | AA51: 94.95 | AB51: 56.39333333 | AC51: 4.34 | AD51: 3.82 | AE51: 1.86 | AF51: 3.34 | AG51: 3.94 | AH51: 3.47 | AI51: 1.86 | AJ51: 3.09 | AK51: 3.58 | AL51: 3.15 | AM51: 1.86 | AN51: 2.863333333 | AO51: 3.26 | AP51: 2.87 | AQ51: 1.86 | AR51: 2.663333333 | AS51: 2.95 | AT51: 2.6 | AU51: 1.86 | AV51: 2.47 | AW51: 2.69 | AX51: 2.37 | AY51: 1.86 | AZ51: 2.306666667 | BA51: 0.45 | BB51: 0.33 | BC51: 1 | BD51: 0.5933333333
X53: Peso | AB53: =SUM(AB5+AB8+AB29+AB38+AB44) -> 0 | AF53: =SUM(AF5+AF8+AF29+AF38+AF44) -> 0 | AJ53: =SUM(AJ5+AJ8+AJ29+AJ38+AJ44) -> 0
AB54: Peso Total (quilogramas) | AN54: =AJ53+AI53+AB53 -> 0
G56: A empresa deverá anexar a sua tabela de tarifas completa, apresentando todas as capitais do país, tendo como origem BRASÍLIA/DF.
